bitfinex/quotes_SOLUSD_20250517
["timestamp","ask_amount","ask_price","bid_price","bid_amount"]
[1747447766743,12.43365235,164.73,164.65,6.07345081]
[1747447767083,12.43365235,164.74,164.66,26.0]
[1747447767240,5.4634857,164.73,164.66,32.07293411]
[1747447767757,5.46288519,164.75,164.67,18.64964886]
[1747447767960,5.4624937,164.76,164.67,18.64964886]
[1747447769044,12.43365235,164.8,164.7,26.0]
[1747447769243,5.46154878,164.79,164.71,6.07127678]
[1747447769747,17.89477571,164.81,164.72,18.64964886]
[1747447769975,5.46112336,164.81,164.73,26.0]
[1747447770168,5.46057472,164.82,164.74,18.64964886]
[1747447770343,233.0952,164.87,164.77,26.0]
[1747447770671,12.43365235,164.85,164.78,18.64964886]
[1747447770854,12.43365235,164.86,164.78,18.64964886]
[1747447771167,12.43365235,164.84,164.78,26.0]
[1747447771370,5.46017108,164.83,164.75,24.71943261]
[1747447771569,12.43365235,164.81,164.74,32.07016515]
[1747447772083,12.43365235,164.82,164.74,32.07016515]
[1747447772372,12.43365235,164.81,164.74,26.0]
[1747447773168,12.43365235,164.8,164.74,26.0]
[1747447774065,5.46119563,164.8,164.74,26.0]
[1747447774256,12.43365235,164.84,164.75,18.64964886]
[1747447774665,5.4599224,164.84,164.75,18.64964886]
[1747447774864,5.45955979,164.85,164.75,18.64964886]
[1747447775155,17.89321214,164.85,164.75,18.64964886]
[1747447776110,5.4592693,164.86,164.77,44.64964886]
[1747447776392,5.45851528,164.88,164.77,44.64964886]
[1747447776553,31.45851528,164.88,164.77,44.64964886]
[1747447776752,31.45851528,164.88,164.77,179.34964886]
[1747447776970,5.45851528,164.88,164.8,26.0]
[1747447778181,12.43365235,164.89,164.8,26.0]
[1747447778390,12.43365235,164.88,164.8,32.06777495]
[1747447779051,12.43365235,164.88,164.8,26.0]
[1747447779265,12.43365235,164.88,164.8,32.06788833]
[1747447779451,12.43365235,164.89,164.8,26.0]
[1747447779676,19.10309117,164.9,164.8,32.06787514]
[1747447779677,12.43365235,164.88,164.8,32.06787514]
[1747447780079,5.45851528,164.88,164.8,32.06787514]
[1747447780276,5.45851528,164.88,164.8,26.0]
[1747447780661,5.45851528,164.88,164.8,32.06785766]
[1747447781476,5.45823373,164.89,164.81,18.64964886]
[1747447782165,17.89150559,164.9,164.81,24.71714374]
[1747447783194,5.45652964,164.94,164.85,44.64964886]
[1747447783690,17.89018199,164.94,164.85,44.64964886]
[1747447783898,5.45652964,164.94,164.85,44.64964886]
[1747447784064,12.43365235,164.93,164.85,26.0]
[1747447784480,12.43365235,164.91,164.85,26.0]
[1747447784684,12.43365235,164.9,164.85,26.0]
[1747447784998,12.43365235,164.92,164.85,26.0]
[1747447785203,12.43365235,164.93,164.85,26.0]
[1747447785884,12.43365235,164.93,164.85,32.0661055]
[1747447786401,5.45719136,164.92,164.85,32.0661055]
[1747447786707,30.7,164.95,164.86,18.64964886]
[1747447786881,36.15629916,164.95,164.86,18.64964886]
[1747447787470,48.58995151,164.95,164.86,18.64964886]
[1747447787695,12.43365235,164.94,164.86,18.64964886]
[1747447788194,12.43365235,164.93,164.85,26.0]
[1747447788495,5.45752228,164.91,164.85,32.06598246]
[1747447788866,12.43365235,164.94,164.86,18.64964886]
[1747447789070,12.43365235,164.93,164.86,18.64964886]
[1747447789576,12.43365235,164.93,164.85,26.0]
[1747447790493,12.43365235,164.92,164.85,26.0]
[1747447790694,12.43365235,164.9,164.85,26.0]
[1747447791084,12.43365235,164.89,164.82,34.1242]
[1747447791285,12.43365235,164.9,164.82,40.19133944]
[1747447792468,30.7,164.92,164.82,40.19133944]
[1747447792469,17.89183659,164.89,164.82,34.1242]
[1747447793196,12.43365235,164.88,164.82,34.1242]
[1747447793580,17.89183659,164.89,164.82,34.1242]
[1747447793784,17.89183659,164.89,164.82,40.19131483]
[1747447794185,5.45818424,164.89,164.82,40.19131483]
[1747447794500,5.45818424,164.89,164.82,34.1242]
[1747447794501,12.43365235,164.88,164.82,34.1242]
[1747447796006,5.45884636,164.87,164.82,34.1242]
[1747447796996,5.4585904,164.88,164.82,34.1242]
[1747447797180,5.45825018,164.89,164.82,40.19137876]
[1747447797681,5.45792055,164.9,164.83,18.64964886]
[1747447797888,36.15760087,164.91,164.83,18.64964886]
[1747447798482,17.89125322,164.91,164.83,18.64964886]
[1747447798675,17.89125322,164.91,164.83,24.71644841]
[1747447800605,12.43365235,164.89,164.82,34.1242]
[1747447800778,12.43365235,164.88,164.82,34.1242]
[1747447800982,12.43365235,164.89,164.82,34.1242]
[1747447802005,12.43365235,164.89,164.82,40.19140849]
[1747447802207,17.89125322,164.91,164.83,18.64964886]
[1747447802418,5.45760087,164.91,164.83,18.64964886]
[1747447802772,12.43365235,164.93,164.83,18.64964886]
[1747447802773,5.45719136,164.92,164.84,6.06648871]
[1747447802976,12.43365235,164.91,164.83,18.64964886]
[1747447803497,12.43365235,164.9,164.82,34.1242]
[1747447804409,12.43365235,164.91,164.82,40.19139841]
[1747447805088,5.45785324,164.9,164.83,18.64964886]
[1747447805300,12.43365235,164.94,164.83,18.64964886]
[1747447805691,12.43365235,164.92,164.83,18.64964886]
[1747447805892,12.43365235,164.91,164.83,18.64964886]
[1747447807204,5.45762648,164.91,164.83,24.71618726]
[1747447807596,17.89051283,164.93,164.83,24.71618726]
[1747447808011,12.43365235,164.92,164.83,18.64964886]
[1747447808196,12.43365235,164.91,164.83,18.64964886]
[1747447808511,12.43365235,164.91,164.83,24.71641964]
[1747447808821,12.43365235,164.92,164.83,24.71641964]
[1747447809324,5.45752228,164.91,164.83,24.71641964]
[1747447809690,13.22357976,164.91,164.83,24.71641964]
[1747447810031,13.22357976,164.91,164.83,24.71646209]
[1747447810216,5.45752228,164.91,164.83,24.71646209]
[1747447811704,21.40820869,164.93,164.83,24.71646209]
[1747447812287,7.76605748,164.93,164.83,24.71646209]
[1747447812692,13.22258712,164.94,164.83,39.88360399]
[1747447813099,13.22258712,164.94,164.86,26.0]
[1747447813485,7.76605748,164.93,164.86,26.0]
[1747447813914,7.76605748,164.94,164.86,32.06564579]
[1747447814290,5.45661366,164.94,164.87,18.64964886]
[1747447815609,5.45586808,164.96,164.87,18.64964886]
[1747447815997,5.45553737,164.97,164.9,26.37214886]
[1747447817432,27.5,165.02,164.93,26.0]
[1747447817590,7.76605748,165.0,164.93,26.0]
[1747447817790,5.45421489,165.01,164.93,26.0]
[1747447818008,7.76605748,165.0,164.93,26.0]
[1747447818533,7.76605748,164.98,164.91,26.0]
[1747447819414,5.45553737,164.97,164.91,26.0]
[1747447819933,13.22159485,164.97,164.9,7.7225]
[1747447820090,7.76605748,164.94,164.87,6.06529756]
[1747447820490,7.76605748,164.95,164.87,6.06529756]
[1747447820794,7.76605748,164.95,164.87,32.06529756]
[1747447820994,5.45652964,164.94,164.87,32.06529756]
[1747447821589,13.22258712,164.94,164.87,26.0]
[1747447822403,7.76605748,164.93,164.87,26.0]
[1747447823011,5.45818424,164.89,164.83,18.64964886]
[1747447823327,5.45793483,164.9,164.83,50.71639555]
[1747447823529,13.22399231,164.9,164.83,50.71639555]
[1747447823817,13.22399231,164.9,164.83,44.64964886]
[1747447824020,13.22399231,164.9,164.83,24.71649369]
[1747447824192,5.45793483,164.9,164.83,50.71649369]
[1747447825196,5.45752228,164.91,164.83,50.71649369]
[1747447825603,5.45726572,164.92,164.83,50.71649369]
[1747447826005,7.76605748,164.95,164.87,18.64964886]
[1747447826331,34.62605748,164.96,164.87,18.64964886]
[1747447826626,7.76605748,164.94,164.87,18.64964886]
[1747447826795,7.76605748,164.94,164.86,26.0]
[1747447827730,13.22291796,164.93,164.83,134.7]
[1747447828027,13.22291796,164.93,164.84,26.0]
[1747447828235,7.76605748,164.92,164.84,26.0]
[1747447828525,13.22291796,164.93,164.85,18.64964886]
[1747447829326,5.45686048,164.93,164.85,18.64964886]
[1747447829491,7.76605748,164.95,164.87,18.64964886]
[1747447829922,5.45619884,164.95,164.88,6.06501698]
[1747447830104,5.45606312,164.96,164.88,6.06501698]
[1747447830306,5.45606312,164.96,164.89,44.64964886]
[1747447831213,5.45553737,164.97,164.9,6.06428138]
[1747447831614,13.22159485,164.97,164.9,6.06428138]
[1747447832136,13.22136323,164.98,164.91,18.64964886]
[1747447832329,5.45530575,164.98,164.91,18.64964886]
[1747447832918,5.45492364,164.99,164.93,18.64964886]
[1747447833115,5.45454545,165.0,164.93,24.71264695]
[1747447833714,5.45430139,165.01,164.93,24.71264695]
[1747447836545,7.76605748,165.0,164.93,18.64964886]
[1747447836743,7.76605748,164.99,164.93,18.64964886]
[1747447836925,7.76605748,165.0,164.93,18.64964886]
[1747447837124,7.76605748,164.99,164.93,26.0]
[1747447837526,5.45520669,164.98,164.91,44.64964886]
[1747447838038,13.22126417,164.98,164.91,44.64964886]
[1747447839041,5.45520669,164.98,164.91,50.71345206]
[1747447840645,5.45355389,165.03,164.91,50.71345206]
[1747447840842,7.76605748,165.02,164.91,50.71345206]
[1747447841715,5.45355389,165.03,164.96,6.06207565]
[1747447841716,13.21961137,165.03,164.96,6.06207565]
[1747447842116,13.21961137,165.03,164.95,24.71200925]
[1747447843653,5.45355389,165.03,164.95,24.71200925]
[1747447844848,5.4519021,165.08,164.99,18.64964886]
[1747447845045,7.76605748,165.07,164.99,18.64964886]
[1747447845856,5.4519021,165.08,164.99,26.0]
[1747447845857,7.76605748,165.06,164.99,26.0]
[1747447846734,7.76605748,165.05,164.99,26.0]
[1747447848547,7.76605748,165.04,164.99,26.0]
[1747447848752,5.45355389,165.03,164.96,168.5228]
[1747447848934,5.45355389,165.03,164.96,33.8228]
[1747447849140,7.76605748,165.02,164.96,33.8228]
[1747447849444,7.76605748,165.02,164.96,7.8228]
[1747447850059,13.21961137,165.03,164.96,7.8228]
[1747447850939,13.21961137,165.03,164.97,18.64964886]
[1747447851645,13.21931473,165.04,164.97,18.64964886]
[1747447852368,7.76605748,165.03,164.96,7.8228]
[1747447852745,7.76605748,165.02,164.96,7.8228]
[1747447852944,5.45421489,165.01,164.96,7.8228]
[1747447853457,7.76605748,165.16,165.07,18.64964886]
[1747447854260,7.76605748,165.15,165.07,18.64964886]
[1747447854958,7.76605748,165.15,165.08,6.057669]
[1747447855842,13.21588717,165.15,165.08,6.057669]
[1747447856435,7.76605748,165.17,165.09,18.64964886]
[1747447856636,13.214659,165.18,165.09,18.64964886]
[1747447856841,27.6515,165.21,165.09,44.64964886]
[1747447856842,1.6115,165.21,165.09,44.64964886]
[1747447857754,5.44761213,165.21,165.09,44.64964886]
[1747447858144,5.44761213,165.21,165.09,69.82964886]
[1747447858348,5.44827168,165.19,165.09,75.88670889]
[1747447858568,17.82768089,165.19,165.09,50.70670889]
[1747447858766,12.37940921,165.16,165.09,26.0]
[1747447859061,12.37940921,165.16,165.08,27.5918]
[1747447859361,12.37940921,165.15,165.08,26.04]
[1747447859574,30.7,165.18,165.08,26.04]
[1747447859745,12.37940921,165.15,165.08,26.04]
[1747447860071,12.37940921,165.15,165.13,0.762958]
[1747447860439,5.44992127,165.14,165.13,0.762958]
[1747447860857,17.82933048,165.14,165.13,0.762958]
[1747447862549,5.44992127,165.14,165.13,0.762958]
[1747447863247,1.5746,165.19,165.13,0.762958]
[1747447863248,5.44926132,165.16,165.13,0.762958]
[1747447863643,12.37940921,165.15,165.13,0.762958]
[1747447863848,12.37940921,165.14,165.13,0.762958]
[1747447864444,17.82933048,165.14,165.13,0.762958]
[1747447864849,38.05357934,165.14,165.13,0.762958]
[1747447865446,19.40393048,165.14,165.13,0.762958]
[1747447866742,38.05357934,165.14,165.13,0.762958]
[1747447868576,86.83298855,165.14,165.13,0.762958]
[1747447869282,74.45357934,165.14,165.13,0.762958]
[1747447870164,86.83298855,165.14,165.13,0.762958]
[1747447871756,26.0,165.11,165.0,8.0397]
[1747447871957,12.37940921,165.05,165.0,8.0397]
[1747447872156,12.37940921,165.06,165.0,8.0397]
[1747447872357,24.94,165.1,165.0,8.0397]
[1747447872566,12.37940921,165.08,165.0,8.0397]
[1747447873360,12.37940921,165.08,165.0,14.10029443]
[1747447873565,17.83164159,165.07,165.0,8.0397]
[1747447873772,12.37940921,165.05,165.0,8.0397]
[1747447875179,12.37940921,165.06,165.0,8.0397]
[1747447875383,17.83164159,165.07,165.0,8.0397]
[1747447876270,12.37940921,165.06,165.0,14.10030401]
[1747447876574,12.37940921,165.06,165.0,8.0397]
[1747447877887,5.45289306,165.05,165.0,8.0397]
[1747447878761,12.37940921,165.04,165.0,8.0397]
[1747447879768,5.45355389,165.03,165.0,8.0397]
[1747447880379,12.37940921,165.05,165.0,8.0397]
[1747447880380,5.45289306,165.05,165.0,8.0397]
[1747447883871,7.75212669,165.04,164.97,26.0]
[1747447884063,13.20501975,165.05,164.97,32.06162903]
[1747447884571,7.75212669,165.04,164.97,26.0]
[1747447885375,7.75212669,165.04,164.97,32.06166823]
[1747447885771,26.83636217,165.06,164.97,32.06166823]
[1747447886464,5.4525627,165.06,164.98,18.64964886]
[1747447887985,7.75212669,165.05,164.98,24.71074968]
[1747447888187,7.75212669,165.04,164.97,32.06162124]
[1747447888492,13.20468939,165.06,164.97,32.06162124]
[1747447888665,7.75212669,165.05,164.97,32.06162124]
[1747447888860,13.20468939,165.06,164.98,18.64964886]
[1747447889609,13.20468939,165.06,164.99,6.06097339]
[1747447890278,5.4525627,165.06,164.99,6.06097339]
[1747447891480,5.4525627,165.06,165.0,32.06030705]
[1747447891690,5.4523369,165.07,165.0,32.06030705]
[1747447892493,5.45058139,165.12,165.02,8.2391]
[1747447893493,5.45058139,165.12,165.04,18.64964886]
[1747447894292,13.20270808,165.12,165.03,32.05950433]
[1747447894606,7.75212669,165.1,165.02,14.29894557]
[1747447894779,19.07703487,165.12,165.02,14.29894557]
[1747447894972,7.75212669,165.11,165.02,14.29894557]
[1747447895372,13.20270808,165.12,165.02,14.29894557]
[1747447895786,5.45058139,165.12,165.02,14.29894557]
[1747447895999,7.75212669,165.11,165.02,14.29894557]
[1747447896383,7.75212669,165.1,165.02,14.29894557]
[1747447897304,13.62645348,165.12,165.02,14.29894557]
[1747447897501,7.75212669,165.1,165.02,14.29894557]
[1747447898391,5.45157186,165.09,165.02,14.29894557]
[1747447899706,5.45134439,165.1,165.02,14.29894557]
[1747447900077,5.45058139,165.12,165.05,26.0]
[1747447901902,5.45058139,165.12,165.05,32.05867862]
[1747447902211,7.75212669,165.1,165.03,26.0]
[1747447902409,7.75212669,165.11,165.03,32.05941342]
[1747447903515,5.45124167,165.1,165.03,32.05941342]
[1747447904007,30.7,165.13,165.07,26.0]
[1747447904396,38.45212669,165.13,165.04,18.64964886]
[1747447904582,7.75212669,165.12,165.05,26.0]
[1747447904779,43.90247732,165.13,165.05,26.0]
[1747447905410,43.90247732,165.13,165.05,32.05841227]
[1747447906305,5.45091151,165.11,165.05,26.0]
[1747447906513,13.2030382,165.11,165.05,26.0]
[1747447907224,5.45091151,165.11,165.03,24.92]
[1747447907510,7.75212669,165.1,165.04,26.0]
[1747447907688,7.75212669,165.1,165.03,24.92]
[1747447908010,5.45091151,165.11,165.02,8.2391]
[1747447908011,7.75212669,165.08,165.02,8.2391]
[1747447908195,7.75212669,165.06,164.98,8.2835]
[1747447908393,5.45289306,165.05,164.98,14.34478679]
[1747447908606,7.75212669,165.04,164.98,8.2835]
[1747447908819,7.75212669,165.02,164.96,24.92]
[1747447909209,7.75212669,165.02,164.94,14.34621357]
[1747447909411,7.75212669,165.01,164.94,8.2835]
[1747447909619,7.75212669,165.02,164.94,8.2835]
[1747447909923,7.75212669,165.01,164.94,8.2835]
[1747447910116,7.75212669,165.02,164.95,26.0]
[1747447910311,13.20634158,165.01,164.94,8.2835]
[1747447910815,7.75212669,165.0,164.94,8.2835]
[1747447911196,5.45421489,165.01,164.94,8.2835]
[1747447911392,13.20634158,165.01,164.94,8.2835]
[1747447911698,13.20634158,165.01,164.94,14.34630894]
[1747447911901,7.75212669,165.0,164.94,8.2835]
[1747447912502,13.20690923,165.0,164.94,8.2835]
[1747447912719,5.45478254,165.0,164.94,8.2835]
[1747447913430,5.45478254,165.0,164.94,14.34630292]
[1747447913835,13.633497,165.04,164.97,26.0]
[1747447914132,7.75212669,165.02,164.97,26.0]
[1747447914328,5.45289306,165.05,164.97,26.0]
[1747447914627,13.20501975,165.05,164.98,6.06134076]
[1747447915233,7.75212669,165.03,164.97,26.0]
[1747447915433,7.75212669,165.02,164.97,26.0]
[1747447916021,19.08512571,165.05,164.97,26.0]
[1747447916331,7.75212669,165.04,164.97,32.06153411]
[1747447917124,5.45355389,165.03,164.97,26.0]
[1747447917326,13.20568058,165.03,164.97,26.0]
[1747447918123,13.20568058,165.03,164.97,32.06166799]
[1747447918494,5.45355389,165.03,164.97,32.06166799]
[1747447919223,13.20544696,165.04,164.97,32.06166799]
[1747447919423,5.45332027,165.04,164.97,32.06166799]
[1747447920219,13.20544696,165.04,164.97,26.0]
[1747447920422,7.75212669,165.02,164.97,26.0]
[1747447921118,7.75212669,165.05,164.97,26.0]
[1747447921823,30.7,165.06,164.98,18.64964886]
[1747447922121,7.75212669,165.07,165.0,18.64964886]
[1747447922296,7.75212669,165.08,165.0,18.64964886]
[1747447922912,5.45223238,165.07,165.0,24.70998545]
[1747447923329,13.20435907,165.07,164.94,158.13990188]
[1747447923509,13.20435907,165.07,164.95,18.64964886]
[1747447923510,7.75212669,165.05,164.95,18.64964886]
[1747447923703,7.75212669,165.05,164.95,43.50964886]
[1747447924105,7.75212669,165.05,164.98,26.0]
[1747447924343,7.75212669,165.03,164.95,49.57209202]
[1747447924505,5.45223238,165.07,164.95,64.72819993]
[1747447924707,7.75212669,165.06,164.98,26.0]
[1747447924922,5.45223238,165.07,164.99,18.64964886]
[1747447925219,13.20435907,165.07,165.0,6.06060606]
[1747447925820,7.75212669,165.04,164.98,26.0]
[1747447926401,5.45223238,165.07,164.95,18.64964886]
[1747447926703,7.75212669,165.05,164.95,24.71209202]
[1747447926916,7.75212669,165.05,164.98,26.0]
[1747447927530,5.45322346,165.04,164.98,32.06121034]
[1747447928045,30.7,165.07,164.99,18.64964886]
[1747447928342,38.45212669,165.07,164.99,18.64964886]
[1747447929534,43.90444081,165.07,165.0,6.06060606]
[1747447930534,5.45212822,165.08,165.0,6.06060606]
[1747447930751,30.7,165.12,165.03,26.0]
[1747447930905,30.7,165.12,165.05,26.0]
[1747447931107,30.7,165.15,165.07,26.0]
[1747447931437,38.45212669,165.15,165.07,26.0]
[1747447931815,38.45212669,165.15,165.08,6.057669]
[1747447931816,43.90180022,165.15,165.08,6.057669]
[1747447932027,13.20180022,165.15,165.07,32.05794423]
[1747447932221,7.75212669,165.13,165.07,26.0]
[1747447932413,7.75212669,165.14,165.07,26.0]
[1747447933036,19.07365173,165.15,165.04,18.64964886]
[1747447933226,7.75212669,165.11,165.03,18.64964886]
[1747447933424,19.07365173,165.15,165.03,44.64964886]
[1747447933630,7.75212669,165.12,165.03,44.64964886]
[1747447933941,13.20256427,165.13,165.06,26.0]
[1747447934137,55.54,165.16,165.06,26.0]
[1747447934138,13.20212581,165.14,165.06,26.0]
[1747447934444,5.44999912,165.14,165.06,26.0]
[1747447935139,13.2019539,165.15,165.06,26.0]
[1747447935444,13.2019539,165.15,165.07,18.64964886]
[1747447936247,13.2019539,165.15,165.08,6.057669]
[1747447936546,7.75212669,165.13,165.06,32.0580648]
[1747447937138,7.75212669,165.14,165.06,32.0580648]
[1747447937926,13.20216262,165.14,165.06,32.0580648]
[1747447938333,7.75212669,165.14,165.07,18.64964886]
[1747447938750,7.75212669,165.15,165.07,18.64964886]
[1747447938928,7.75212669,165.14,165.07,18.64964886]
[1747447939116,7.75212669,165.14,165.06,32.0580648]
[1747447940456,13.20214395,165.14,165.06,32.0580648]
[1747447941049,7.75212669,165.13,165.06,32.0580648]
[1747447941248,7.75212669,165.12,165.06,32.0580648]
[1747447941551,7.75212669,165.13,165.06,32.0580648]
[1747447942137,19.07241462,165.16,165.03,15.14835501]
[1747447942138,7.75212669,165.11,165.03,6.05950433]
[1747447942433,7.75212669,165.1,165.03,6.05950433]
[1747447942756,7.75212669,165.08,165.02,6.5642]
[1747447943133,7.75212669,165.07,164.97,7.7647]
[1747447943356,7.75212669,165.05,164.97,13.82638562]
[1747447943525,5.45355389,165.03,164.97,7.7647]
[1747447943848,13.20568058,165.03,164.95,232.76233484]
[1747447944059,7.75212669,165.02,164.94,6.06271852]
[1747447944347,7.75212669,165.01,164.93,38.68780779]
[1747447944553,7.75212669,165.0,164.93,38.68780779]
[1747447944750,7.75212669,165.0,164.94,26.0]
[1747447945132,7.75212669,164.97,164.89,7.7647]
[1747447945333,7.75212669,164.97,164.92,26.0]
[1747447945526,7.75212669,164.98,164.92,26.0]
[1747447945727,7.75212669,164.98,164.93,26.0]
[1747447945929,7.75212669,164.98,164.9,6.06405237]
[1747447946544,7.75212669,164.97,164.92,26.0]
[1747447946755,7.75212669,164.97,164.9,26.0]
[1747447946933,7.75212669,164.96,164.89,7.7647]
[1747447947134,7.75212669,164.94,164.88,24.86]
[1747447947340,24.8,164.97,164.85,234.7341]
[1747447947341,7.75212669,164.92,164.85,8.0341]
[1747447947544,13.20956717,164.92,164.85,14.10013817]
[1747447947859,7.75212669,164.9,164.82,24.86]
[1747447948041,7.75212669,164.88,164.81,8.0341]
[1747447948245,7.75212669,164.88,164.82,26.0]
[1747447948631,7.75212669,164.86,164.79,7.3767728]
[1747447948947,7.75212669,164.87,164.79,7.3767728]
[1747447949153,7.75212669,164.86,164.79,26.02642166]
[1747447949356,12.43195215,164.87,164.79,26.02642166]
[1747447949785,17.89090564,164.87,164.8,32.06785198]
[1747447949939,17.89090564,164.87,164.8,26.0]
[1747447950257,12.43195215,164.88,164.8,32.06780629]
[1747447950466,12.43195215,164.94,164.85,18.64964886]
[1747447950646,37.21195215,164.96,164.88,26.0]
[1747447950843,12.43195215,164.95,164.86,8.0341]
[1747447951052,42.66782037,164.96,164.87,26.0]
[1747447951345,12.43195215,164.94,164.87,26.0]
[1747447951740,5.45686048,164.93,164.87,26.0]
[1747447951941,12.43195215,164.94,164.87,32.06512975]
[1747447951942,5.45655057,164.94,164.87,32.06512975]
[1747447952238,12.43195215,164.92,164.84,26.0]
[1747447952443,12.43195215,164.89,164.82,32.8141]
[1747447952967,12.43195215,164.89,164.82,38.88118475]
[1747447953150,12.43195215,164.9,164.82,64.88118475]
[1747447953352,12.43195215,164.91,164.82,64.88118475]
[1747447953537,12.43195215,164.9,164.82,64.88118475]
[1747447953735,5.45818424,164.89,164.82,40.10118475]
[1747447954342,12.43195215,164.92,164.83,18.64964886]
[1747447954541,12.43195215,164.91,164.83,18.64964886]
[1747447954865,12.43195215,164.91,164.82,40.10118475]
[1747447955462,12.43195215,164.9,164.82,40.10118475]
[1747447955651,5.45818424,164.89,164.82,40.10118475]
[1747447955973,5.45786249,164.9,164.82,40.10118475]
[1747447956470,17.88981464,164.9,164.82,40.10118475]
[1747447956770,5.45786249,164.9,164.82,40.10118475]
[1747447956965,17.88981464,164.9,164.82,40.10118475]
[1747447957571,12.43195215,164.87,164.79,50.80642166]
[1747447957876,5.45786249,164.9,164.8,26.0]
[1747447958084,12.43195215,164.86,164.8,26.0]
[1747447958570,12.43195215,164.86,164.8,25.5]
[1747447958771,12.43195215,164.83,164.79,7.3767728]
[1747447958955,12.43195215,164.84,164.79,7.3767728]
[1747447959478,17.89278583,164.81,164.74,32.3821]
[1747447959649,12.43195215,164.8,164.74,6.0385]
[1747447960461,12.43195215,164.8,164.74,32.0385]
[1747447961446,17.8934212,164.8,164.74,32.0385]
[1747447962174,12.43195215,164.8,164.74,38.10855736]
[1747447962360,5.46085425,164.81,164.74,38.10855736]
[1747447962557,12.43195215,164.88,164.78,26.0]
[1747447962760,12.43195215,164.86,164.78,26.0]
[1747447963076,5.45851528,164.88,164.79,18.64964886]
[1747447963256,5.45851528,164.88,164.82,26.0]
[1747447963655,5.45826091,164.89,164.82,32.06718464]
[1747447963856,17.89021306,164.89,164.82,32.06718464]
[1747447964381,12.43195215,164.87,164.79,1.6521]
[1747447964564,12.43195215,164.85,164.78,26.0]
[1747447964766,12.43195215,164.83,164.76,6.06933565]
[1747447965176,12.43195215,164.83,164.76,26.0]
[1747447965364,12.43195215,164.83,164.76,32.06933104]
[1747447965551,17.89216029,164.83,164.76,32.06933104]
[1747447966479,5.46020814,164.83,164.76,26.0]
[1747447966788,12.43195215,164.82,164.76,26.0]
[1747447967164,12.43195215,164.81,164.76,26.0]
[1747447967360,12.43195215,164.79,164.74,6.0385]
[1747447967566,17.89355667,164.79,164.76,26.0]
[1747447967777,5.46160452,164.79,164.76,26.0]
[1747447968492,5.46160452,164.79,164.72,24.72053743]
[1747447968704,12.43195215,164.78,164.71,7.71506721]
[1747447968993,17.89355667,164.79,164.74,26.0]
[1747447969668,13.65238793,164.81,164.74,26.0]
[1747447970071,12.43195215,164.8,164.74,26.0]
[1747447970269,12.43195215,164.79,164.74,26.0]
[1747447971182,13.65238793,164.81,164.74,26.0]
[1747447971385,12.43195215,164.8,164.74,26.0]
[1747447971578,12.43195215,164.81,164.74,26.0]
[1747447971762,17.89317939,164.8,164.74,32.07014342]
[1747447972311,5.46122724,164.8,164.74,32.07014342]
[1747447972460,12.43195215,164.79,164.74,26.0]
[1747447973487,17.89358757,164.79,164.74,26.0]
[1747447973859,5.46126116,164.8,164.74,32.0701006]
[1747447974087,12.43195215,164.79,164.71,1.6438]
[1747447974290,12.43195215,164.78,164.73,26.0]
[1747447975088,12.43195215,164.78,164.74,26.0]
[1747447975387,17.89321331,164.8,164.74,26.0]
[1747447975791,30.7,164.81,164.74,26.0]
[1747447975792,48.59284078,164.81,164.74,32.07003801]
[1747447975995,30.7,164.81,164.74,32.07003801]
[1747447977076,48.59281502,164.81,164.74,32.07003801]
[1747447977385,30.7,164.81,164.75,18.64964886]
[1747447977691,42.652364,164.83,164.75,18.64964886]
[1747447977889,42.652364,164.83,164.76,6.06943432]
[1747447979595,17.89188836,164.84,164.76,6.06943432]
[1747447979817,12.43195215,164.82,164.72,134.7]
[1747447979977,12.43195215,164.82,164.75,26.0]
[1747447980486,17.89188836,164.84,164.76,18.64964886]
[1747447980690,5.45993621,164.84,164.76,18.64964886]
[1747447980870,5.45884636,164.87,164.8,18.64964886]
[1747447981065,24.72,164.88,164.83,26.0]
[1747447981374,30.7,164.91,164.84,18.64964886]
[1747447981678,17.8892266,164.92,164.84,24.71585694]
[1747447981864,5.45727445,164.92,164.84,24.71585694]
[1747447982059,17.8892266,164.92,164.84,24.71585694]
[1747447982587,12.43195215,164.91,164.85,26.0]
[1747447982785,17.8892266,164.92,164.85,26.0]
[1747447983295,12.43195215,164.91,164.85,26.0]
[1747447983481,12.43195215,164.9,164.85,26.0]
[1747447983690,12.43195215,164.9,164.8,134.7]
[1747447983691,17.89046743,164.88,164.83,26.0]
[1747447983878,12.43195215,164.87,164.83,26.0]
[1747447984083,5.45851528,164.88,164.83,26.0]
[1747447984499,17.89046743,164.88,164.83,26.0]